bitfinex-derivatives/quotes_ETHF0:USTF0_20250102
["timestamp","ask_amount","ask_price","bid_price","bid_amount"]
[1735823447088,1.15542,3476.9,3476.6,42.23594]
[1735823447287,0.28794,3476.7,3476.3,0.28797]
[1735823447488,3.2078,3476.5,3476.2,0.28798]
[1735823447688,3.49576,3476.5,3476.1,0.28798]
[1735823448089,3.2078,3476.5,3476.2,0.28798]
[1735823448492,3.49576,3476.5,3476.1,0.28798]
[1735823448796,3.2078,3476.5,3476.1,0.28799]
[1735823449498,0.28797,3476.4,3476.0,40.8]
[1735823449795,3.2078,3476.1,3476.0,40.8]
[1735823449991,0.4215,3476.3,3476.0,40.8]
[1735823450294,0.4215,3476.3,3476.2,0.28798]
[1735823450493,2.985,3476.4,3476.3,0.28797]
[1735823450692,2.985,3476.4,3476.3,1.43597]
[1735823451597,2.985,3476.4,3476.3,42.23597]
[1735823454401,0.4215,3477.0,3476.3,41.948]
[1735823454586,0.4215,3477.0,3476.8,0.28793]
[1735823455196,0.4215,3477.0,3476.7,0.4389]
[1735823455596,0.4215,3477.0,3476.5,0.28795]
[1735823456096,3.2078,3476.8,3476.5,0.28795]
[1735823456493,0.4561,3476.7,3476.4,0.28796]
[1735823457292,0.4561,3476.7,3476.3,1.148]
[1735823457498,0.4561,3476.7,3476.3,1.43597]
[1735823458001,0.4561,3476.7,3476.3,1.148]
[1735823458603,0.4561,3476.7,3476.3,1.43597]
[1735823458899,0.4561,3476.7,3476.3,1.148]
[1735823458900,0.28795,3476.6,3476.3,1.148]
[1735823459205,0.74826,3476.5,3476.0,0.28799]
[1735823459388,0.4387,3476.4,3476.0,0.28799]
[1735823459796,0.4387,3476.4,3475.8,41.948]
[1735823459990,3.2078,3476.3,3475.8,40.8]
[1735823460189,0.28799,3476.2,3475.7,3.2078]
[1735823460388,0.28799,3476.2,3475.7,3.49582]
[1735823460598,0.4205,3476.1,3475.7,3.49582]
[1735823460995,0.4205,3476.1,3475.8,0.28801]
[1735823461192,0.4205,3476.1,3475.9,0.288]
[1735823461894,0.4205,3476.1,3475.8,2.03006447]
[1735823462093,0.4205,3476.1,3476.0,0.288]
[1735823463001,3.2078,3476.3,3476.2,0.28798]
[1735823463205,0.4387,3476.4,3476.1,5.23786447]
[1735823463391,3.4453,3476.5,3476.1,2.03006447]
[1735823463596,6.6531,3476.5,3475.8,3.17088447]
[1735823463795,6.6531,3476.5,3476.3,0.28797]
[1735823464702,3.6681,3476.5,3476.3,0.28797]
[1735823464899,3.6681,3476.5,3475.8,2.45086447]
[1735823465103,3.95606,3476.5,3476.1,0.28798]
[1735823465402,3.95606,3476.5,3475.8,2.45086447]
[1735823465403,3.95606,3476.5,3476.2,0.28798]
[1735823466505,3.6681,3476.5,3476.2,0.28798]
[1735823467604,0.28797,3476.4,3476.0,1.43699]
[1735823468105,0.4325,3476.3,3476.1,0.28798]
[1735823468304,0.4339,3476.2,3476.0,1.149]
[1735823468493,0.4339,3476.2,3476.1,0.28799]
[1735823469402,0.28799,3476.1,3475.7,0.28802]
[1735823469803,3.2078,3475.8,3475.5,3.17906447]
[1735823470107,0.4199,3475.7,3475.6,41.08803]
[1735823470309,0.8524,3475.7,3475.4,0.28804]
[1735823470606,0.4319,3475.6,3475.4,0.28804]
[1735823470996,0.4319,3475.6,3475.2,40.8]
[1735823471202,3.2078,3475.4,3475.1,1.149]
[1735823471512,3.2078,3475.4,3475.2,0.28805]
[1735823472006,3.2078,3475.4,3475.3,0.28805]
[1735823474911,3.2078,3475.4,3475.3,6.44305]
[1735823475207,2.25253981,3475.9,3475.8,0.28801]
[1735823475405,2.25253981,3475.9,3475.8,2.31807447]
[1735823475807,4.5727,3476.2,3475.8,43.11807447]
[1735823476002,4.5727,3476.2,3475.8,40.8]
[1735823476211,0.28799,3476.1,3475.8,40.8]
[1735823476400,0.28799,3476.1,3475.5,2.31809447]
[1735823476800,2.54052981,3476.1,3475.5,2.31809447]
[1735823477010,2.54052981,3476.1,3475.6,40.8]
[1735823477308,2.54052981,3476.1,3475.6,41.08803]
[1735823477500,2.25253981,3476.1,3475.6,40.8]
[1735823478023,2.25253981,3476.0,3475.8,0.28801]
[1735823478610,2.25253981,3476.0,3475.5,2.03006447]
[1735823479010,2.25253981,3476.0,3475.6,40.8]
[1735823479201,2.25253981,3476.0,3475.8,2.03006447]
[1735823479407,2.25253981,3476.0,3475.9,0.28801]
[1735823480213,6.82523981,3476.2,3475.8,2.03006447]
[1735823480407,6.37003981,3476.2,3476.1,2.31805447]
[1735823480611,2.25253981,3476.2,3476.1,6.68085447]
[1735823481612,2.68843981,3476.6,3476.5,0.28796]
[1735823483314,2.68843981,3476.6,3476.2,0.4334]
[1735823483511,2.68843981,3476.6,3476.4,0.28796]
[1735823483711,2.68843981,3476.6,3476.2,0.28798]
[1735823483906,2.68843981,3476.6,3476.3,0.28797]
[1735823484513,2.68843981,3476.6,3475.9,0.4634]
[1735823484715,2.25253981,3476.4,3476.1,0.28798]
[1735823485017,2.25253981,3476.4,3475.7,3.2078]
[1735823485018,3.2078,3476.3,3475.7,3.2078]
[1735823485332,0.8885,3476.2,3475.8,0.28801]
[1735823485618,1.17648,3476.2,3475.8,0.28801]
[1735823485809,0.4192,3476.1,3475.8,0.28801]
[1735823486012,2.25253981,3476.0,3475.8,0.28801]
[1735823486319,2.25253981,3476.0,3475.9,0.28801]
[1735823487116,3.38210171,3476.0,3475.8,0.28801]
[1735823487811,3.38210171,3476.0,3475.7,1.44302]
[1735823488416,2.26011682,3475.8,3475.7,1.44302]
[1735823489112,2.26011682,3475.8,3475.7,42.24302]
[1735823489311,2.26011682,3475.8,3475.7,41.955]
[1735823489514,2.26011682,3475.8,3475.1,7.70786144]
[1735823489715,2.54813682,3475.8,3475.2,1.44306]
[1735823489910,6.58990171,3475.9,3475.3,40.8]
[1735823490112,3.49585,3475.4,3475.1,4.50006144]
[1735823490312,0.4243,3475.3,3475.1,4.50006144]
[1735823490512,1.2807,3475.3,3475.1,45.30006144]
[1735823491117,1.2807,3475.3,3475.1,4.50006144]
[1735823491414,0.28807,3475.2,3474.6,3.49591]
[1735823491609,0.28807,3475.2,3474.8,1.155]
[1735823492112,7.64780171,3475.3,3474.9,0.28809]
[1735823492520,7.64780171,3475.3,3474.8,0.2881]
[1735823492710,4.2657,3475.3,3475.2,0.28806]
[1735823493117,4.2657,3475.3,3475.1,0.28807]
[1735823493622,4.2657,3475.3,3475.2,0.28806]
[1735823493819,4.2657,3475.3,3474.7,44.86576447]
[1735823494022,4.2657,3475.3,3475.2,0.28806]
[1735823494213,0.28809,3475.0,3474.5,0.28812]
[1735823494415,3.2078,3474.8,3474.6,0.28811]
[1735823494820,3.2078,3474.8,3474.5,0.28812]
[1735823495021,3.2078,3474.8,3474.7,0.28811]
[1735823495219,3.2078,3474.8,3474.3,4.50006144]
[1735823495625,0.28811,3474.7,3474.3,4.50006144]
[1735823495922,0.28811,3474.7,3474.1,3.2078]
[1735823495923,0.8629,3474.6,3474.1,3.2078]
[1735823496123,0.28813,3474.5,3474.2,0.28815]
[1735823496328,3.2078,3474.4,3474.1,0.28815]
[1735823496724,3.49594,3474.4,3474.0,40.8]
[1735823497120,3.2078,3474.4,3474.1,0.28815]
[1735823497318,0.4421,3474.3,3474.0,40.8]
[1735823497519,0.73024,3474.3,3474.0,40.8]
[1735823498320,0.73024,3474.3,3473.9,0.28817]
[1735823498521,0.4421,3474.3,3474.1,0.28815]
[1735823498722,2.985,3474.4,3474.2,42.83006447]
[1735823498928,3.3892992,3474.5,3474.2,42.83006447]
[1735823499117,3.3892992,3474.5,3474.4,0.28813]
[1735823500327,2.31816447,3474.8,3474.4,0.28813]
[1735823501219,2.03006447,3474.8,3474.0,41.2349]
[1735823501424,2.25484792,3474.7,3474.4,0.28812]
[1735823502427,2.25484792,3474.7,3474.4,0.28813]
[1735823503024,2.25484792,3474.7,3474.0,41.2349]
[1735823503228,2.54295792,3474.7,3474.0,41.2349]
[1735823503526,2.54295792,3474.7,3474.3,0.28813]
[1735823503929,2.54295792,3474.7,3474.0,41.2349]
[1735823504229,2.25484792,3474.7,3474.4,0.28813]
[1735823504726,2.25484792,3474.7,3474.0,41.2349]
[1735823505030,2.25484792,3474.7,3474.0,43.26496447]
[1735823505330,2.25484792,3474.7,3474.6,0.28811]
[1735823507030,2.25484792,3474.8,3474.6,0.28811]
[1735823507627,2.25484792,3474.8,3474.7,0.28811]
[1735823508721,4.81309,3474.9,3474.2,3.2078]
[1735823508722,6.77984792,3474.9,3474.2,3.2078]
[1735823508927,6.77984792,3474.9,3474.8,0.2881]
[1735823509331,7.06793792,3474.9,3474.3,0.72034]
[1735823509526,7.06793792,3474.9,3474.7,0.2881]
[1735823510330,7.06793792,3474.9,3474.8,0.2881]
[1735823510827,4.81309,3474.9,3474.8,0.2881]
[1735823511223,0.2881,3474.8,3474.7,0.2881]
[1735823511427,4.8131,3474.9,3474.7,0.2881]
[1735823511628,4.8131,3474.9,3474.4,0.28813]
[1735823511833,4.8131,3474.9,3474.7,0.2881]
[1735823512831,4.8131,3474.9,3474.3,0.72034]
[1735823513024,3.2078,3474.4,3474.3,0.28815]
[1735823514731,2.25370688,3474.6,3474.0,5.67276447]
[1735823514936,2.25370688,3474.6,3474.5,0.28813]
[1735823515939,4.0782,3474.9,3474.8,0.28811]
[1735823517935,3.2078,3474.9,3474.8,0.28811]
[1735823519440,2.25370688,3475.1,3474.7,0.2895]
[1735823519739,2.25370688,3475.1,3475.0,0.28809]
[1735823520134,2.25370688,3475.1,3475.0,1.20749]
[1735823520337,2.25370688,3475.3,3475.2,0.28808]
[1735823521348,2.25370688,3475.3,3475.2,2.31814447]
[1735823521537,2.25370688,3475.6,3475.5,0.28805]
[1735823521844,2.25370688,3475.6,3475.5,1.45005]
[1735823522042,2.25370688,3475.6,3475.5,42.25005]
[1735823522238,2.25370688,3475.6,3475.5,44.28011447]
[1735823522838,2.25370688,3475.9,3475.8,0.28803]
[1735823523435,2.25370688,3475.9,3475.6,0.879]
[1735823523742,2.25370688,3475.9,3475.8,0.28803]
[1735823524037,6.5970992,3476.1,3475.6,0.879]
[1735823524038,5.46150688,3476.1,3475.6,0.879]
[1735823524245,5.46150688,3476.1,3476.0,0.28801]
[1735823525743,3.2078,3476.1,3476.0,0.28801]
[1735823527450,3.2078,3476.1,3475.6,0.879]
[1735823527746,3.6603,3476.1,3476.0,0.28801]
[1735823528446,3.6603,3476.1,3475.6,0.879]
[1735823528647,3.6603,3476.1,3475.9,0.28801]
[1735823529355,0.28801,3476.0,3475.7,0.28803]
[1735823529555,6.20201688,3476.1,3475.7,0.28803]
[1735823529853,0.28801,3476.0,3475.6,0.4244]
[1735823530053,0.28801,3476.0,3475.6,0.71244]
[1735823530247,5.91400688,3476.1,3475.2,2.03006447]
[1735823530447,5.91400688,3476.1,3475.8,0.28802]
[1735823531148,2.25370688,3475.9,3475.4,1.161]
[1735823531353,2.25370688,3475.9,3475.5,0.28804]
[1735823531647,2.25370688,3475.9,3475.5,1.161]
[1735823531848,2.25370688,3475.9,3475.5,0.28805]
[1735823532049,2.25370688,3475.9,3475.5,1.44905]
[1735823533050,3.2078,3475.7,3475.5,1.161]
[1735823533250,0.4211,3475.6,3475.5,1.161]
[1735823533653,0.8829,3475.6,3475.5,1.161]
[1735823535355,1.17094,3475.6,3475.5,1.161]
[1735823535647,0.8829,3475.6,3475.5,1.161]
[1735823535852,0.8829,3475.6,3475.2,0.28808]
[1735823535853,1.17095,3475.6,3475.2,0.28808]
[1735823536048,0.4592,3475.5,3475.1,1.161]
[1735823536249,0.4592,3475.5,3475.4,0.28806]
[1735823536444,0.4592,3475.5,3475.4,41.08806]
[1735823536653,0.4592,3475.5,3475.3,0.28806]
[1735823537347,0.4592,3475.5,3475.1,40.8]
[1735823537556,0.4592,3475.5,3475.3,0.28806]
[1735823537859,6.5970992,3475.4,3475.1,40.8]
[1735823538043,6.5970992,3475.4,3475.2,0.28807]
[1735823538346,6.5970992,3475.4,3475.2,0.28808]
[1735823538943,0.28808,3475.2,3474.8,0.28811]
[1735823539147,0.28808,3475.2,3474.9,40.8]
[1735823539351,8.62716367,3475.4,3474.9,40.8]
[1735823539352,0.4451,3475.1,3474.9,40.8]
[1735823539553,0.4622,3475.0,3474.9,40.8]
[1735823539747,0.4622,3475.0,3474.9,41.0881]
[1735823540547,0.4622,3475.0,3474.7,0.28811]
[1735823540852,0.4622,3475.0,3474.4,0.4546]
[1735823540853,0.4627,3474.9,3474.8,0.28811]
[1735823546650,2.25742301,3475.0,3474.6,3.19106447]
[1735823546850,2.25742301,3475.0,3474.9,0.2881]
[1735823547357,2.25742301,3475.0,3474.9,2.31816447]
[1735823547558,2.25742301,3475.0,3474.9,43.11816447]
[1735823547754,3.3892992,3475.2,3474.9,43.11816447]
[1735823547755,2.69012301,3475.3,3474.9,43.25466447]
[1735823548157,2.69012301,3475.3,3475.2,0.28808]
[1735823549262,0.4327,3475.3,3475.2,0.28808]
[1735823550954,5.92686852,3475.9,3475.2,0.28808]
[1735823550955,5.63884852,3475.9,3475.2,5.0]
[1735823551157,4.51678472,3475.7,3475.6,0.28804]
[1735823551452,3.1368569,3476.0,3475.9,0.28802]
[1735823551658,3.1368569,3476.0,3475.9,41.08802]
[1735823552554,4.1096,3476.5,3475.9,40.8]
[1735823552755,2.03006447,3476.4,3475.9,40.8]
[1735823552955,2.03006447,3476.4,3475.8,4.50006144]
[1735823553764,5.23786447,3476.1,3475.6,3.2078]
[1735823553960,2.03006447,3475.8,3475.3,1.161]
[1735823554152,2.03006447,3475.5,3475.1,4.50006144]
[1735823554361,2.03006447,3475.2,3475.1,4.50006144]
[1735823554759,2.47526447,3475.2,3475.1,4.50006144]
[1735823555063,2.47526447,3475.2,3474.9,0.2881]
[1735823555256,0.4385,3475.1,3474.5,3.2078]
[1735823555456,0.8949,3475.1,3475.0,0.28809]
[1735823555664,0.8949,3475.1,3474.9,0.28809]
[1735823556659,0.8949,3475.1,3475.0,0.28809]
[1735823557564,0.4385,3475.1,3475.0,0.28809]
[1735823557758,0.4452,3475.2,3475.1,0.28808]
[1735823560381,2.92546447,3475.2,3474.8,1.161]
[1735823560581,0.8954,3475.2,3475.1,0.28808]
[1735823563579,0.4452,3475.2,3475.1,0.28808]
[1735823565587,0.4625,3475.4,3475.0,3.2078]
[1735823565884,0.4625,3475.4,3475.3,0.28806]
[1735823566080,0.8584,3475.6,3475.0,3.2078]
[1735823566387,0.4262,3475.6,3475.5,0.28805]
[1735823566583,0.4487,3476.0,3475.5,1.199]
[1735823566788,0.4289,3475.9,3475.8,0.28802]
[1735823568189,0.4322,3476.2,3475.8,3.2078]
[1735823568385,0.4322,3476.2,3476.1,0.288]
[1735823570986,0.72019,3476.2,3475.8,0.28802]
[1735823571193,3.2078,3475.9,3475.8,0.28802]
[1735823571690,3.6546,3475.9,3475.8,0.28802]
[1735823571884,0.4468,3475.9,3475.8,0.28802]
[1735823576889,0.4468,3475.9,3475.3,1.199]
[1735823577091,0.4468,3475.9,3475.1,4.50006144]
[1735823577092,2.03006447,3475.7,3475.1,4.50006144]
[1735823577393,3.2078,3475.6,3475.5,0.28804]
[1735823577589,3.6574,3475.6,3475.5,0.28804]
[1735823580198,0.4496,3475.6,3475.5,0.28804]
[1735823580995,3.6574,3475.6,3475.5,0.28804]
[1735823584003,0.4496,3475.6,3475.5,0.28804]
[1735823584301,0.4639,3475.8,3475.7,0.28803]
[1735823584897,4.52126053,3475.9,3475.8,0.28802]
[1735823585493,0.288,3476.1,3475.9,0.28801]
[1735823585713,9.09006053,3476.2,3476.0,0.288]
[1735823585899,0.288,3476.1,3475.9,0.28801]
[1735823586603,4.80926053,3476.1,3475.9,0.28801]
[1735823587298,4.80926053,3476.1,3475.5,40.8]
[1735823587299,0.28803,3475.8,3475.6,0.28803]
[1735823587497,3.2078,3475.8,3475.5,0.28804]
[1735823587806,0.28804,3475.6,3475.5,0.28804]
[1735823588018,0.28804,3475.6,3474.8,12.71466181]
[1735823588019,0.28804,3475.6,3474.9,1.17163]
[1735823588198,0.8437,3475.5,3475.4,0.28805]
[1735823589105,1.13175,3475.5,3475.4,0.28805]
[1735823589307,0.8437,3475.5,3475.4,0.28805]
[1735823589700,1.13175,3475.5,3475.4,0.28805]
[1735823591597,0.28806,3475.4,3475.3,0.28806]
[1735823591811,3.2078,3475.4,3475.3,0.28806]
[1735823592101,0.28809,3475.0,3474.9,0.2881]
[1735823592405,2.03006447,3475.0,3474.4,4.94396144]
[1735823592610,0.28811,3474.7,3474.5,0.28813]
[1735823592998,3.49593,3474.6,3474.4,4.78819144]
[1735823593409,3.49593,3474.6,3474.4,0.28813]
[1735823593602,3.2078,3474.6,3474.0,4.50006144]
[1735823593802,3.49596,3474.1,3474.0,4.50006144]
[1735823594309,4.1248,3474.1,3474.0,4.50006144]
[1735823594809,4.1248,3474.1,3473.8,47.55653734]
[1735823594810,4.1248,3474.1,3473.8,0.28818]
[1735823595009,0.28818,3473.9,3473.8,0.28818]
[1735823596105,0.28817,3474.0,3473.8,0.28818]
[1735823596814,0.28818,3473.9,3473.7,0.28819]
[1735823597011,4.1248,3474.1,3473.8,0.28819]
[1735823597310,4.41297,3474.1,3473.5,41.979]
[1735823597519,0.917,3474.1,3474.0,0.28817]
[1735823598607,3.2078,3474.5,3473.7,2.03006447]
[1735823598808,3.2078,3474.5,3473.8,0.72047]
[1735823599012,3.2078,3474.5,3474.3,0.28814]
[1735823599317,0.28815,3474.3,3473.7,0.4561]
[1735823599515,0.28815,3474.2,3473.7,0.4561]
[1735823599811,0.28815,3474.3,3474.1,0.28816]
[1735823600013,0.28815,3474.3,3474.0,0.28816]
[1735823600215,5.23786447,3474.5,3473.8,1.179]
[1735823600618,0.28817,3474.1,3473.9,0.28817]
[1735823600816,0.8847,3474.0,3473.9,0.28817]
[1735823602609,0.28815,3474.3,3474.0,0.28816]
[1735823602816,0.28815,3474.3,3473.8,1.179]
[1735823603108,3.2078,3474.5,3473.8,4.3868]
[1735823603307,3.2078,3474.5,3474.4,0.28814]
[1735823606313,3.2078,3474.9,3474.8,0.2881]
[1735823608410,3.2078,3474.9,3474.7,0.28811]
[1735823608609,3.2078,3474.9,3474.6,0.4579]
[1735823608811,3.2078,3474.9,3474.7,0.28811]
[1735823610115,3.2078,3474.9,3474.6,0.4579]
[1735823610423,0.28811,3474.7,3474.3,1.179]
[1735823610716,1.17062,3474.6,3474.3,1.46714]
[1735823611513,0.28814,3474.4,3474.3,1.179]
[1735823613013,5.23786447,3474.5,3473.9,40.8]
[1735823613218,0.28817,3474.1,3473.9,0.28818]
[1735823613419,0.429,3474.0,3473.9,0.28818]
[1735823615118,0.71718,3474.0,3473.7,0.28819]
[1735823615317,2.47096447,3473.9,3473.6,0.4589]
[1735823615511,0.28819,3473.8,3473.6,0.4589]
[1735823615914,0.28819,3473.8,3473.6,0.7471]
[1735823616323,0.876,3473.9,3473.6,0.4589]
[1735823616521,0.2882,3473.7,3473.4,41.08822]
[1735823616719,0.28821,3473.5,3473.2,0.28823]
[1735823616921,3.49601,3473.6,3473.4,0.28822]
[1735823617225,0.28821,3473.6,3473.4,0.28822]
[1735823617425,0.2882,3473.7,3473.4,0.28822]
[1735823617621,2.90606447,3473.9,3473.3,0.28823]
[1735823617924,2.90606447,3473.9,3473.2,0.28824]
[1735823618126,0.28822,3473.5,3473.3,0.28823]
[1735823618328,2.03006447,3473.6,3472.9,3.2078]
[1735823618519,0.28824,3473.2,3472.9,4.3868]
[1735823618718,0.28824,3473.2,3472.9,4.67506]
[1735823618917,0.4626,3473.1,3473.0,0.28824]
[1735823619113,0.4626,3473.1,3472.9,3.2078]
[1735823619318,0.28824,3473.0,3472.7,41.08826]
[1735823619522,0.28825,3472.9,3472.7,40.8]
[1735823619824,0.4542,3473.0,3472.5,0.28827]
[1735823620017,0.28825,3472.9,3472.5,0.28827]
[1735823620531,3.2078,3472.7,3472.3,1.179]
[1735823620827,3.49606,3472.7,3472.4,0.28828]
[1735823621325,3.49606,3472.7,3472.3,1.179]
[1735823621527,3.2078,3472.7,3472.5,0.28827]
[1735823621720,3.2078,3472.7,3472.4,0.28828]
[1735823622329,3.49607,3472.7,3472.4,0.28828]
[1735823622527,5.23786447,3472.7,3472.1,0.4451]
[1735823622723,0.28827,3472.6,3472.3,0.28829]
[1735823623136,5.23786447,3472.7,3472.1,1.6231]
[1735823623320,5.23786447,3472.7,3472.2,0.2883]
[1735823623520,5.23786447,3472.7,3472.1,0.4451]
[1735823623721,0.28828,3472.5,3472.1,0.73341]
[1735823623924,0.454,3472.4,3472.3,0.28829]
[1735823624126,3.2078,3472.7,3472.6,0.28827]
[1735823624326,3.2078,3472.7,3472.4,0.28828]
[1735823624522,5.23786447,3472.7,3472.1,0.4451]
[1735823624733,3.2078,3472.7,3472.1,0.4451]
[1735823624921,3.2078,3472.7,3472.2,0.2883]
[1735823624922,3.49606,3472.7,3472.2,0.2883]
[1735823625122,3.2078,3472.7,3472.1,0.4451]
[1735823625317,5.23786447,3472.7,3472.1,0.4451]
[1735823625522,5.23786447,3472.7,3471.8,2.03006447]
[1735823625523,0.2883,3472.3,3471.9,0.28832]
[1735823625823,0.4576,3472.2,3472.0,40.8]
[1735823626029,0.28831,3472.1,3472.0,40.8]
[1735823626223,0.4545,3472.1,3471.7,0.4328]
[1735823626423,0.74281,3472.1,3471.7,1.89914]
[1735823626630,0.74281,3472.1,3471.7,1.6108]
[1735823626930,0.74281,3472.1,3471.7,1.89914]
[1735823627333,0.4545,3472.1,3471.8,0.28833]
[1735823627723,0.74281,3472.1,3471.7,1.89914]
[1735823628120,0.8901,3472.2,3471.9,0.28833]
[1735823628427,1.17841,3472.2,3471.8,0.28833]
[1735823628827,0.8901,3472.2,3471.7,0.4328]
[1735823629026,0.8901,3472.2,3472.0,0.28831]
[1735823630128,0.8901,3472.2,3472.1,0.28831]
[1735823630524,0.8901,3472.2,3471.7,0.4328]
[1735823630731,0.4576,3472.2,3472.1,0.28831]
[1735823633330,0.4576,3472.2,3472.0,0.28832]
[1735823634038,2.03006447,3472.1,3472.0,0.28832]
[1735823635031,2.03006447,3472.1,3471.7,0.4328]
[1735823635230,0.4211,3472.0,3471.6,3.2078]
[1735823635536,0.4211,3472.0,3471.8,0.28833]
[1735823636035,0.4189,3471.9,3471.6,3.2078]
[1735823636228,2.03006447,3471.8,3471.6,3.2078]
[1735823636625,0.4189,3471.9,3471.6,3.2078]
[1735823636928,0.4189,3471.9,3471.8,0.28834]
[1735823641945,0.72098,3471.2,3469.9,11.74481525]
[1735823642235,10.0684,3471.9,3469.9,9.61234489]
[1735823642236,10.15192894,3470.6,3469.9,9.61234489]
[1735823642431,0.2885,3469.9,3469.0,15.76157018]
[1735823642635,0.2885,3469.9,3469.8,10.59780178]
[1735823642835,5.2885,3469.9,3469.8,5.22284407]
[1735823643037,5.2885,3469.9,3469.8,1.03364407]
[1735823643338,0.2886,3468.7,3468.5,1.23]
[1735823643534,5.52646447,3468.7,3468.6,2.8808]
[1735823643731,5.23786447,3468.7,3468.6,2.8808]
[1735823644138,3.2078,3469.5,3469.4,0.28853]
[1735823644535,3.2078,3469.5,3469.4,6.05333]
[1735823646136,3.2078,3469.5,3469.0,1.23]
[1735823646338,3.49634,3469.5,3469.2,2.8808]
[1735823646543,0.28854,3469.4,3469.2,3.16935]
[1735823646744,3.2078,3469.5,3469.3,2.8808]
[1735823647044,3.2078,3469.5,3469.4,3.16934]
[1735823647544,3.2078,3469.5,3469.4,6.05334]
[1735823647739,3.2078,3469.5,3469.4,46.85334]
[1735823648141,3.2078,3469.5,3469.4,46.5648]
[1735823648343,3.49633,3469.5,3469.4,46.5648]
[1735823648537,5.52639447,3469.5,3469.4,40.8]
[1735823648743,0.28856,3469.3,3468.9,0.28857]
[1735823648946,3.49637,3469.0,3468.8,2.39828]
[1735823649148,3.2078,3469.0,3468.8,2.39828]
[1735823649444,3.2078,3469.0,3468.9,5.7648]
[1735823650648,3.49637,3469.0,3468.9,5.7648]
[1735823658943,0.28864,3468.2,3468.1,0.8494]
[1735823659149,3.49644,3468.2,3468.1,0.8494]
[1735823659344,3.49644,3468.2,3468.1,6.6142]
[1735823660552,3.2078,3468.2,3468.1,6.6142]
[1735823660855,2.5105,3468.2,3468.1,6.90285]
[1735823661555,2.5105,3468.2,3468.1,6.6142]
[1735823661952,2.5105,3468.2,3468.1,6.90285]
[1735823662454,2.5105,3468.2,3468.1,6.6142]
[1735823665659,3.2078,3468.6,3468.1,6.6142]
[1735823665860,3.2078,3468.6,3468.3,0.28863]
[1735823666059,3.2078,3468.6,3468.5,2.8808]
[1735823666357,3.49641,3468.6,3468.5,2.8808]
[1735823666756,3.2078,3468.6,3468.5,2.8808]
[1735823666963,3.49641,3468.6,3468.5,2.8808]
[1735823667149,3.2078,3468.6,3468.5,2.8808]
[1735823667353,3.2078,3468.6,3468.5,3.16942]
[1735823668054,3.2078,3468.6,3468.5,2.8808]
[1735823668452,3.2078,3468.6,3468.5,3.16942]
[1735823669859,0.28887,3465.4,3465.3,10.72721269]
[1735823670059,3.49667,3465.4,3465.3,10.72721269]
[1735823670355,3.2078,3465.4,3465.3,10.72721269]
[1735823670574,3.2078,3465.4,3465.3,12.01121269]
[1735823670757,3.2078,3465.4,3465.3,10.72721269]
[1735823670959,0.28886,3465.6,3465.3,12.01121269]
[1735823671154,3.49661,3466.2,3465.5,2.73879713]
[1735823671378,3.2078,3466.3,3465.8,0.28884]
[1735823671556,3.2078,3465.9,3465.7,0.28885]
[1735823671960,3.2078,3465.9,3465.6,1.284]
[1735823672151,3.2078,3466.4,3465.9,0.28883]
[1735823672356,3.2078,3466.4,3465.6,1.284]
[1735823672357,3.2078,3466.4,3466.1,0.28881]
[1735823672552,3.2078,3466.4,3466.3,0.2888]
[1735823673159,3.2078,3466.8,3466.4,0.28878]
[1735823673364,3.2078,3466.8,3466.5,41.08878]
[1735823673655,3.2078,3466.8,3466.6,1.284]
[1735823673861,3.2078,3466.8,3466.6,1.57277]
[1735823674455,3.2078,3466.8,3466.6,1.284]
[1735823674656,3.2078,3466.8,3466.5,40.8]
[1735823674962,3.2078,3466.8,3466.5,42.084]
[1735823675163,3.2078,3466.8,3466.7,0.28877]
[1735823675766,3.2078,3467.2,3467.1,0.28873]
[1735823678867,14.43795,3466.9,3464.3,3.2078]
[1735823679073,0.28898,3464.1,3464.0,8.13306365]
[1735823679368,5.94671713,3464.1,3464.0,7.84406365]
[1735823679564,10.94671713,3464.1,3464.0,5.85530011]
[1735823679763,10.94671713,3464.1,3464.0,5.40610011]
[1735823680365,10.65773713,3464.1,3463.2,1.395]
[1735823680666,3.2078,3463.3,3462.3,2.44993713]
[1735823680863,0.28906,3463.3,3462.8,0.28909]
[1735823681061,3.2078,3463.0,3462.9,0.30886713]
[1735823681266,3.2078,3463.0,3462.9,0.28908]
[1735823681464,3.2078,3463.0,3462.9,0.01978713]
[1735823681667,3.2078,3463.0,3462.9,0.30886713]
[1735823681856,3.2078,3463.0,3462.9,42.21478713]
[1735823682569,3.2078,3463.0,3462.9,40.81978713]
[1735823682869,3.2078,3463.0,3462.9,42.50386713]
[1735823683069,3.2078,3463.0,3462.9,42.21478713]
[1735823683665,3.2078,3463.0,3462.9,40.81978713]
[1735823683869,3.2078,3463.0,3462.9,42.21478713]
[1735823684769,3.2078,3463.0,3462.9,42.50386713]
[1735823684966,3.2078,3463.0,3462.9,42.21478713]
[1735823685171,3.2078,3463.0,3462.8,0.28908]
[1735823685466,3.2078,3463.0,3462.9,0.28908]
[1735823685671,3.2078,3463.0,3462.9,41.08908]
[1735823686671,3.2078,3463.0,3462.9,42.53808]
[1735823689267,3.2078,3463.0,3462.9,41.08908]
[1735823689470,3.2078,3463.0,3462.9,42.53908]
[1735823693777,2.5095,3463.0,3462.9,42.53908]
[1735823693977,1.20484,3463.0,3462.9,42.53908]
[1735823694173,3.2078,3463.4,3463.3,0.28905]
[1735823694668,3.2078,3463.4,3463.3,0.30883713]
[1735823694865,3.2078,3463.4,3463.3,41.10883713]
[1735823695066,3.2078,3463.4,3463.3,0.30883713]